[Event "WALTON 40th BAN-ch U20 Open 2022"]
[Site "Dhaka"]
[Date "2022.02.22"]
[Round "8.8"]
[White "Mortuza Muhtadi, Islam"]
[Black "Justin Matthias Baroi"]
[Result "1/2-1/2"]
[ECO "C00"]
[WhiteElo "1485"]
[BlackElo "1575"]
[Annotator "NA RC"]
[PlyCount "65"]
[EventDate "2022.02.15"]
[EventType "swiss"]
[EventCountry "BAN"]
[SourceTitle "playchess.com"]
[Source "ChessBase"]
[SourceQuality "1"]
[TimeControl "5400+30"]

1. e4 {[%emt 0:11:17]} e6 {[%emt 0:00:19]} 2. d3 {[%emt 0:00:05]} d5 {[%emt 0:00:23]} 3. Qe2 {[%emt 0:00:05]} b6 {[%emt 0:09:01]} 4. g3 {[%emt 0:00:15]} Bb7 {[%emt 0:00:21]} 5. Bg2 {[%emt 0:00:06]} c5 {[%emt 0:04:50]} 6. Nf3 {[%emt 0:01:16]} Bd6 {[%emt 0:04:08]} 7. e5 {[%emt 0:08:08]} Bf8 {[%emt 0:07:23]} 8. c4 {[%emt 0:01:31]} Ne7 {[%emt 0:07:48]} 9. Nh4 {[%emt 0:05:09]} Nbc6 {[%emt 0:08:44]} 10. Na3 {[%emt 0:08:36]} Nd4 {[%emt 0:07:26]} 11. Qd1 {[%emt 0:07:25]} Ng6 {[%emt 0:13:04]} 12. Nxg6 {[%emt 0:05:38]} hxg6 {[%emt 0:00:11]} 13. O-O {[%emt 0:00:42]} Be7 {[%emt 0:06:14]} 14. Nc2 {[%emt 0:04:14]} Nf5 {[%emt 0:05:35]} 15. Ne3 {[%emt 0:03:05]} Rb8 {[%emt 0:00:38]} 16. Nxf5 {[%emt 0:06:33]} gxf5 {[%emt 0:00:31]} 17. Qa4+ {[%emt 0:04:01]} Kf8 {[%emt 0:02:08]} 18. Qxa7 {[%emt 0:06:56]} Qc7 {[%emt 0:00:49]} 19. Qa4 {[%emt 0:04:43]} Ra8 {[%emt 0:01:09]} 20. Qb3 {[%emt 0:00:34]} dxc4 {[%emt 0:02:09]} 21. dxc4 {[%emt 0:03:17]} Bxg2 {[%emt 0:02:36]} 22. Kxg2 {[%emt 0:00:15]} Qb7+ {[%emt 0:00:10]} 23. f3 {[%emt 0:01:24]} g5 {[%emt 0:00:33]} 24. Be3 {[%emt 0:04:45]} Kg7 {[%emt 0:00:58]} 25. Rh1 {[%emt 0:03:22]} g4 {[%emt 0:01:53]} 26. Bf4 {[%emt 0:00:38]} Rad8 {[%emt 0:01:05]} 27. Rad1 {[%emt 0:02:20]} Qxf3+ {[%emt 0:01:58]} 28. Qxf3 {[%emt 0:00:09]} gxf3+ {[%emt 0:00:04]} 29. Kxf3 {[%emt 0:00:15]} Rxd1 {[%emt 0:00:03]} 30. Rxd1 {[%emt 0:00:05]} Rxh2 {[%emt 0:00:07]} 31. Rd2 {[%emt 0:00:07]} Rxd2 {[%emt 0:02:40]} 32. Bxd2 {[%emt 0:00:01]} f6 {[%emt 0:00:59]} 33. Bf4 {[%emt 0:00:48]} 1/2-1/2

[Event "WALTON 40th BAN-ch U20 Open 2022"]
[Site "Dhaka"]
[Date "2022.02.23"]
[Round "9.6"]
[White "Sajidul, Haque"]
[Black "Tahmidul, Haque"]
[Result "0-1"]
[ECO "B48"]
[WhiteElo "1766"]
[BlackElo "1756"]
[Annotator "NA RC"]
[PlyCount "64"]
[EventDate "2022.02.15"]
[EventType "swiss"]
[EventCountry "BAN"]
[SourceTitle "playchess.com"]
[Source "ChessBase"]
[SourceQuality "1"]
[TimeControl "5400+30"]

1. e4 {[%emt 0:00:02]} c5 {[%emt 0:00:05]} 2. Nf3 {[%emt 0:00:04]} e6 {[%emt 0:00:02]} 3. d4 {[%emt 0:00:06]} cxd4 {[%emt 0:00:01]} 4. Nxd4 {[%emt 0:00:02]} Nc6 {[%emt 0:00:01]} 5. a3 {[%emt 0:00:25]} Qc7 {[%emt 0:00:02]} 6. Nc3 {[%emt 0:00:14]} a6 {[%emt 0:00:01]} 7. Be3 {[%emt 0:00:39]} Nf6 {[%emt 0:00:02]} 8. Be2 {[%emt 0:00:44]} b5 {[%emt 0:00:05]} 9. f3 {[%emt 0:07:25]} Bb7 {[%emt 0:00:14]} 10. O-O {[%emt 0:01:05]} h5 {[%emt 0:00:02]} 11. Qe1 {[%emt 0:02:00]} Bd6 {[%emt 0:07:02]} 12. Qh4 {[%emt 0:01:38]} Ne5 {[%emt 0:07:10]} 13. Rad1 {[%emt 0:09:07]} Ng6 {[%emt 0:02:09]} 14. Qh3 {[%emt 0:01:08]} Nf4 {[%emt 0:21:32]} 15. Bxf4 {[%emt 0:02:29]} Bxf4 {[%emt 0:00:49]} 16. Kh1 {[%emt 0:03:30]} O-O-O {[%emt 0:17:36]} 17. a4 {[%emt 0:04:49]} b4 {[%emt 0:11:10]} 18. Na2 {[%emt 0:00:33]} h4 {[%emt 0:01:47]} 19. Nxb4 {[%emt 0:01:35]} Nh5 {[%emt 0:00:57]} 20. Rd3 {[%emt 0:11:30]} Qb6 {[%emt 0:01:19]} 21. Rc3+ {[%emt 0:08:41]} Kb8 {[%emt 0:04:53]} 22. Nxa6+ {[%emt 0:02:47]} Ka8 {[%emt 0:00:36]} 23. Nc5 {[%emt 0:02:24]} Ng3+ {[%emt 0:10:39]} 24. Kg1 {[%emt 0:00:01]} Nxe2+ {[%emt 0:01:04]} 25. Nxe2 {[%emt 0:00:03]} Bd2 {[%emt 0:00:38]} 26. a5 {[%emt 0:01:35]} Qa7 {[%emt 0:00:23]} 27. Ra3 {[%emt 0:17:13]} Qxc5+ {[%emt 0:00:24]} 28. Kh1 {[%emt 0:00:01]} Ba6 {[%emt 0:00:35]} 29. c3 {[%emt 0:01:13]} Bxe2 {[%emt 0:00:14]} 30. b4 {[%emt 0:02:16]} Qe3 {[%emt 0:01:18]} 31. Rb1 {[%emt 0:01:21]} Bd3 {[%emt 0:00:31]} 32. Rba1 {[%emt 0:00:47]} Bc1 {[%emt 0:00:11]} 0-1

[Event "WALTON 40th BAN-ch U20 Open 2022"]
[Site "Dhaka"]
[Date "2022.02.23"]
[Round "9.7"]
[White "Sajib, Das"]
[Black "Souradip, Datta"]
[Result "1-0"]
[ECO "B50"]
[WhiteElo "1816"]
[BlackElo "1198"]
[Annotator "NA RC"]
[PlyCount "89"]
[EventDate "2022.02.15"]
[EventType "swiss"]
[EventCountry "BAN"]
[SourceTitle "playchess.com"]
[Source "ChessBase"]
[SourceQuality "1"]
[TimeControl "5400+30"]

{[%evp 8,88,24,6,47,50,60,66,76,70,74,79,81,66,69,58,49,9,0,1,10,3,66,-45,-39,-45,13,0,85,83,89,79,91,59,71,48,83,86,257,72,93,91,164,173,148,156,164,182,225,211,368,122,296,144,145,141,198,168,268,272,518,259,322,388,432,471,29990,29992,29992,29993,29993,29994,29994,29991,29995,714,29996,29997,29997,716,29998,29999,29999]} 1. e4 {[%emt 0:10:38]} c5 {[%emt 0:00:11]} 2. Nf3 {[%emt 0:00:24]} d6 {[%emt 0:00:07]} 3. g3 {[%emt 0:00:15]} Nc6 {[%emt 0:01:33]} 4. Bg2 {[%emt 0:00:07]} Bg4 {[%emt 0:02:07]} 5. d3 {[%emt 0:00:39]} Nd4 {[%emt 0:01:10]} 6. Nbd2 {[%emt 0:00:29]} Qd7 {[%emt 0:01:29]} 7. h3 {[%emt 0:00:30]} Bh5 {[%emt 0:00:09]} 8. c3 {[%emt 0:00:13]} Nxf3+ {[%emt 0:00:10]} 9. Nxf3 {[%emt 0:00:04]} e6 {[%emt 0:00:31]} 10. O-O {[%emt 0:00:53]} Be7 {[%emt 0:00:33]} 11. d4 {[%emt 0:00:44]} cxd4 {[%emt 0:01:21]} 12. cxd4 {[%emt 0:00:04]} (12. g4 $14 Bg6 13. Nxd4 (13. Qxd4 Nf6 $11)) 12... Nf6 {[%emt 0:00:17]} 13. Qd3 {[%emt 0:00:37]} Bg6 {[%emt 0:01:21]} 14. Nh4 $1 {[%emt 0:01:19]} Rb8 {[%emt 0:06:57]} (14... d5 $11) 15. f4 {[%emt 0:00:56]} (15. Nxg6 $14 hxg6 16. Bf4) 15... d5 {[%emt 0:07:53]} 16. Nxg6 {[%emt 0:11:35] [#]} hxg6 {[%emt 0:00:36]} ({Better is} 16... dxe4 $1 $15 17. Bxe4 hxg6) 17. e5 $1 {[%emt 0:01:28]} Nh7 {[%emt 0:01:39]} (17... Ne4 $1 $11 {keeps the balance.}) 18. Bd2 {[%emt 0:01:19]} Rc8 {[%emt 0:04:31]} 19. g4 {[%emt 0:00:28]} b6 {[%emt 0:02:25]} 20. f5 {[%emt 0:01:58]} (20. Bf3 $16) 20... gxf5 {[%emt 0:00:15]} 21. gxf5 {[%emt 0:00:12]} exf5 {[%emt 0:00:15]} 22. Rxf5 {[%emt 0:00:40]} ({Much weaker is} 22. Qxf5 $6 Qxf5 23. Rxf5 g6 $11) 22... Rc4 $2 {[%emt 0:03:55] [#]} (22... g6 $16 23. Rf4 Ng5) 23. Bc3 $2 {[%emt 0:09:02]} (23. e6 $1 $18 {[%cal Re6d7]} fxe6 24. Rh5) 23... Ng5 {[%emt 0:02:09]} ({Black should play} 23... g6 $1 $14 24. Rf4 Ng5) 24. e6 {[%emt 0:06:05]} fxe6 {[%emt 0:04:05] [#]} (24... Nxe6 $16 25. Re1 (25. Rxd5 Qc8 $16) (25. Bxd5 Rc7 $16) 25... Rc6) 25. Rxg5 $1 {[%emt 0:00:44]} Bxg5 {[%emt 0:01:28]} 26. Qg6+ {[%emt 0:00:24]} Qf7 {[%emt 0:00:05]} 27. Qxg5 {[%emt 0:00:07]} O-O {[%emt 0:00:05]} 28. Rf1 {[%emt 0:00:20]} Qe8 $2 {[%emt 0:00:25]} (28... Qc7 {is a better defense.} 29. Qg4 Rc6 30. Rxf8+ Kxf8) 29. h4 $2 {[%emt 0:01:41]} (29. Re1 $18 {and the rest is easy.}) 29... Rc7 $2 {[%emt 0:01:20] [#]} (29... Rc8 $16 {was worth a try.} 30. Re1 Rf6) 30. Qg3 {[%emt 0:03:17]} (30. Re1 $1 $18) 30... Rcf7 {[%emt 0:01:33] [#]} 31. Re1 $1 {[%emt 0:03:01]} Rf5 {[%emt 0:01:40]} (31... Rf6 $16) 32. Bd2 {[%emt 0:00:56]} R8f6 {[%emt 0:01:30]} (32... Kh7 $16 33. a3 Qf7) 33. Bg5 {[%emt 0:00:29]} Rg6 $2 {[%emt 0:03:02]} (33... Rf8 34. Bh3 Rf3) 34. Re5 {[%emt 0:01:43]} Qc6 {[%emt 0:03:30]} 35. Rxf5 {[%emt 0:00:32]} exf5 {[%emt 0:00:40]} 36. Qe5 {[%emt 0:00:54]} ({Less strong is} 36. Qb8+ Kh7 37. Qe5 (37. Qxa7 Rxg5 38. hxg5 Qc1+ 39. Bf1 Qxg5+ 40. Kh1 Qh4+ 41. Kg2 Qe4+ 42. Kh2 Qf4+ 43. Kg2 Qg4+ 44. Kh2 Qf4+ 45. Kg2 Qe4+ 46. Kh2 Qf4+ $11) 37... Rxg5 38. hxg5 Qc1+ 39. Kh2 Kg6 40. Qe8+ (40. Qxd5 Qf4+ 41. Kg1 Qe3+ 42. Kf1 Qc1+ 43. Kf2 Qd2+ 44. Kf3 Qxb2 $18) 40... Kxg5 41. Qe7+ (41. Bxd5 Qxb2+ 42. Bg2 Qxd4 $11) 41... Kg6 $18) 36... Re6 $2 {[%emt 0:04:21]} (36... Qc2 $18 37. Bxd5+ Kh7) 37. Bxd5 {[%emt 0:44:13]} Qe8 {[%emt 0:00:42]} 38. Qxf5 {[%emt 0:00:00]} Kh8 {[%emt 0:00:59]} 39. Bxe6 {[%emt 0:00:00]} a5 {[%emt 0:02:28]} 40. Bh6 {[%emt 0:00:00]} Qb8 {[%emt 0:14:04] [#]} 41. Bxg7+ $1 {[%emt 0:00:00]} Kxg7 {[%emt 0:00:36]} 42. Qg5+ {[%emt 0:00:00]} Kh7 {[%emt 0:02:31]} 43. Bf5+ {[%emt 0:00:00]} Kh8 {[%emt 0:00:14]} 44. Qh6+ {[%emt 0:00:00]} Kg8 {[%emt 0:00:31]} 45. Be6# {[%emt 0:00:00]} 1-0

[Event "WALTON 40th BAN-ch U20 Open 2022"]
[Site "Dhaka"]
[Date "2022.02.23"]
[Round "9.8"]
[White "Mohammad Shafiqul, Islam"]
[Black "Mortuza Muhtadi, Islam"]
[Result "1-0"]
[ECO "B01"]
[WhiteElo "1720"]
[BlackElo "1485"]
[Annotator "NA RC"]
[PlyCount "77"]
[EventDate "2022.02.15"]
[EventType "swiss"]
[EventCountry "BAN"]
[SourceTitle "playchess.com"]
[Source "ChessBase"]
[SourceQuality "1"]
[TimeControl "5400+30"]

1. e4 {[%emt 1:31:00]} d5 {[%emt 0:00:13]} 2. exd5 {[%emt 0:00:00]} Nf6 {[%emt 0:00:04]} 3. d4 {[%emt 0:00:00]} Bg4 {[%emt 0:00:05]} 4. f3 {[%emt 0:00:00]} Bf5 {[%emt 0:00:04]} 5. c4 {[%emt 0:00:00]} e6 {[%emt 0:00:55]} 6. dxe6 {[%emt 0:00:00]} Nc6 {[%emt 0:00:27]} 7. Be3 {[%emt 0:00:00]} Bb4+ {[%emt 0:12:26]} 8. Nc3 {[%emt 0:00:00]} Qe7 {[%emt 0:00:28]} 9. Bd3 {[%emt 0:00:00]} Qxe6 {[%emt 0:08:32]} 10. Bxf5 {[%emt 0:00:00]} Qxe3+ {[%emt 0:00:56]} 11. Qe2 {[%emt 0:00:00]} Qxe2+ {[%emt 0:02:44]} 12. Ngxe2 {[%emt 0:00:00]} Bxc3+ {[%emt 0:00:39]} 13. bxc3 {[%emt 0:00:00]} Na5 {[%emt 0:00:15]} 14. Bd3 {[%emt 0:00:00]} O-O-O {[%emt 0:01:04]} 15. Kf2 {[%emt 0:00:00]} Rhe8 {[%emt 0:01:27]} 16. g4 {[%emt 0:00:00]} Re7 {[%emt 0:04:23]} 17. Ng3 {[%emt 0:00:00]} g6 {[%emt 0:03:42]} 18. g5 {[%emt 0:00:00]} Nd7 {[%emt 0:03:09]} 19. Rhe1 {[%emt 0:00:00]} Rde8 {[%emt 0:00:24]} 20. Rxe7 {[%emt 0:00:00]} Rxe7 {[%emt 0:00:03]} 21. Re1 {[%emt 0:00:00]} Rxe1 {[%emt 0:00:17]} 22. Kxe1 {[%emt 0:00:00]} Nb6 {[%emt 0:00:30]} 23. Ne4 {[%emt 0:00:00]} Naxc4 {[%emt 0:59:13]} 24. Nf6 Nb2 {[%emt 0:00:00]} 25. Kd2 {[%emt 0:00:00]} Nxd3 {[%emt 0:00:00]} 26. Kxd3 {[%emt 0:00:00]} Nd7 {[%emt 0:00:00]} 27. Nxh7 {[%emt 0:00:00]} Kd8 {[%emt 0:00:00]} 28. f4 {[%emt 0:00:00]} Ke7 {[%emt 0:00:00]} 29. h4 {[%emt 0:00:00]} Ke6 {[%emt 0:00:00]} 30. Ke4 {[%emt 0:00:00]} f5+ {[%emt 0:00:00]} 31. gxf6 {[%emt 0:00:00]} Nxf6+ {[%emt 0:00:00]} 32. Nxf6 {[%emt 0:00:00]} Kxf6 {[%emt 0:00:00]} 33. c4 {[%emt 0:00:00]} b6 {[%emt 0:00:00]} 34. a3 {[%emt 0:00:00]} c6 {[%emt 0:00:00]} 35. d5 {[%emt 0:00:00]} cxd5+ {[%emt 0:00:00]} 36. cxd5 {[%emt 0:00:00]} b5 {[%emt 0:00:00]} 37. Kd4 {[%emt 0:00:00]} Ke7 {[%emt 0:00:00]} 38. Kc5 {[%emt 0:00:00]} a6 {[%emt 0:00:00]} 39. Kc6 {[%emt 0:00:00]} 1-0